fUST/lending_fUST_20250102
["ID","MTS","AMOUNT","RATE_DAILY","PERIOD"]
[347437743,1735810236509,-500.0,0.00019178,2]
[347437744,1735810236518,-500.0,0.00019178,2]
[347437745,1735810236527,-500.0,0.00019178,2]
[347437746,1735810236536,-500.0,0.00019178,2]
[347437747,1735810236545,-500.0,0.00019178,2]
[347437748,1735810236554,-500.0,0.00019178,2]
[347437749,1735810236563,-500.0,0.00019178,2]
[347437750,1735810236572,-500.0,0.00019178,2]
[347437751,1735810236581,-500.72611036,0.00019178,2]
[347437752,1735810236590,-500.0,0.00019178,2]
[347437753,1735810236599,-500.0,0.00019178,2]
[347437754,1735810236608,-500.0,0.00019178,2]
[347437755,1735810236618,-500.0,0.00019178,2]
[347437756,1735810236627,-501.36039727,0.00019178,2]
[347437757,1735810236636,-500.0,0.00019178,2]
[347437758,1735810236644,-500.0,0.00019178,2]
[347437759,1735810236653,-500.0,0.00019178,2]
[347437760,1735810236663,-500.0,0.00019178,2]
[347437761,1735810236672,-500.0,0.00019178,2]
[347437762,1735810236681,-500.0,0.00019178,2]
[347437763,1735810236690,-500.0,0.00019178,2]
[347437764,1735810236700,-502.97863354,0.00019178,2]
[347437765,1735810236709,-500.0,0.00019178,2]
[347437766,1735810236718,-500.0,0.00019178,2]
[347437767,1735810236727,-500.0,0.00019178,2]
[347437768,1735810236735,-500.0,0.00019178,2]
[347437769,1735810236744,-500.0,0.00019178,2]
[347437770,1735810236753,-500.0,0.00019178,2]
[347437771,1735810236762,-500.0,0.00019178,2]
[347437772,1735810236771,-501.41662504,0.00019178,2]
[347437773,1735810236784,-500.0,0.00019178,2]
[347437774,1735810236793,-500.0,0.00019178,2]
[347437775,1735810236802,-500.0,0.00019178,2]
[347437776,1735810236811,-500.0,0.00019178,2]
[347437777,1735810236820,-500.0,0.00019178,2]
[347437778,1735810236830,-500.0,0.00019178,2]
[347437779,1735810236839,-500.0,0.00019178,2]
[347437780,1735810236848,-500.0,0.00019178,2]
[347437781,1735810236859,-500.0,0.00019178,2]
[347437782,1735810236868,-500.0,0.00019178,2]
[347437783,1735810236877,-500.0,0.00019178,2]
[347437784,1735810236886,-500.0,0.00019178,2]
[347437785,1735810236895,-500.0,0.00019178,2]
[347437786,1735810236905,-500.0,0.00019178,2]
[347437787,1735810236914,-502.0709182,0.00019178,2]
[347437788,1735810236924,-500.0,0.00019178,2]
[347437789,1735810236933,-500.0,0.00019178,2]
[347437790,1735810236943,-500.0,0.00019178,2]
[347437791,1735810236952,-500.0,0.00019178,2]
[347437792,1735810236962,-500.0,0.00019178,2]
[347437793,1735810236971,-500.0,0.00019178,2]
[347437794,1735810236980,-500.0,0.00019178,2]
[347437795,1735810236989,-500.0,0.00019178,2]
[347437796,1735810236998,-500.19485651,0.00019178,2]
[347437797,1735810237008,-505.51315457,0.00019178,2]
[347437798,1735810237017,-500.0,0.00019178,2]
[347437799,1735810237026,-505.09789181,0.00019178,2]
[347437800,1735810237035,-506.02651724,0.00019178,2]
[347437801,1735810237045,-500.0,0.00019178,2]
[347437802,1735810237054,-500.0,0.00019178,2]
[347437803,1735810237064,-500.0,0.00019178,2]
[347437804,1735810237074,-500.0,0.00019178,2]
[347437805,1735810237084,-500.0,0.00019178,2]
[347437806,1735810237094,-500.0,0.00019178,2]
[347437807,1735810237104,-500.0,0.00019178,2]
[347437808,1735810237113,-500.0,0.00019178,2]
[347437809,1735810237122,-500.0,0.00019178,2]
[347437810,1735810237131,-500.0,0.00019178,2]
[347437811,1735810237141,-500.0,0.00019178,2]
[347437812,1735810237150,-500.0,0.00019178,2]
[347437813,1735810237159,-500.0,0.00019178,2]
[347437814,1735810237168,-500.0,0.00019178,2]
[347437815,1735810237178,-500.0,0.00019178,2]
[347437816,1735810237187,-502.87614685,0.00019178,2]
[347437817,1735810237196,-805.74,0.00019178,2]
[347437818,1735810237205,-500.0,0.00019178,2]
[347437819,1735810237214,-500.0,0.00019178,2]
[347437820,1735810237223,-500.0,0.00019178,2]
[347437821,1735810237232,-501.22243204,0.00019178,2]
[347437822,1735810237241,-500.77388586,0.00019178,2]
[347437823,1735810237250,-500.0,0.00019178,2]
[347437824,1735810237260,-500.0,0.00019178,2]
[347437825,1735810237269,-505.18450953,0.00019178,2]
[347437826,1735810237278,-500.0,0.00019178,2]
[347437827,1735810237287,-500.0,0.00019178,2]
[347437828,1735810237296,-500.0,0.00019178,2]
[347437829,1735810237305,-500.0,0.00019178,2]
[347437830,1735810237314,-500.0,0.00019178,2]
[347437831,1735810237323,-500.0,0.00019178,2]
[347437832,1735810237333,-500.0,0.00019178,2]
[347437833,1735810237342,-508.62194031,0.00019178,2]
[347437834,1735810237351,-500.0,0.00019178,2]
[347437835,1735810237361,-1592.1,0.00019178,2]
[347437836,1735810237370,-500.0,0.00019178,2]
[347437837,1735810237379,-500.0,0.00019178,2]
[347437838,1735810237388,-500.0,0.00019178,2]
[347437839,1735810237397,-500.0,0.00019178,2]
[347437840,1735810237406,-500.0,0.00019178,2]
[347437841,1735810237415,-500.0,0.00019178,2]
[347437842,1735810237426,-503.03938597,0.00019178,2]
[347437843,1735810237435,-501.7072964,0.00019178,2]
[347437844,1735810237444,-501.31805084,0.00019178,2]
[347437845,1735810237454,-500.0,0.00019178,2]
[347437846,1735810237463,-500.0,0.00019178,2]
[347437847,1735810237472,-501.02733389,0.00019178,2]
[347437848,1735810237482,-441.49298094,0.00019178,2]
[347437849,1735810237491,-204.05668564,0.00019178,2]
[347437850,1735810237500,-511.90448728,0.00019178,2]
[347437851,1735810237509,-500.50462421,0.00019178,2]
[347437852,1735810237518,-501.05717913,0.00019178,2]
[347437853,1735810237527,-626.27176009,0.00019178,2]
[347437854,1735810237536,-502.8000514,0.00019178,2]
[347437855,1735810237545,-501.28282781,0.00019178,2]
[347437856,1735810237554,-500.0,0.00019178,2]
[347437857,1735810237563,-500.0,0.00019178,2]
[347437858,1735810237573,-500.0,0.00019178,2]
[347437859,1735810237582,-501.97896498,0.00019178,2]
[347437860,1735810237591,-500.0,0.00019178,2]
[347437861,1735810237600,-500.0,0.00019178,2]
[347437862,1735810237609,-498.7019002,0.00019178,2]
[347437863,1735810237619,-500.0,0.00019178,2]
[347437864,1735810237628,-503.77516713,0.00019178,2]
[347437865,1735810237637,-500.0,0.00019178,2]
[347437866,1735810237646,-500.0,0.00019178,2]
[347437867,1735810237655,-500.0,0.00019178,2]
[347437868,1735810237664,-500.0,0.00019178,2]
[347437869,1735810237674,-500.0,0.00019178,2]
[347437870,1735810237683,-502.23258328,0.00019178,2]
[347437871,1735810237694,-503.10872205,0.00019178,2]
[347437872,1735810237703,-504.01615632,0.00019178,2]
[347437873,1735810237712,-500.0,0.00019178,2]
[347437874,1735810237721,-501.32372438,0.00019178,2]
[347437875,1735810237731,-502.3819141,0.00019178,2]
[347437876,1735810237740,-500.0,0.00019178,2]
[347437877,1735810237749,-500.0,0.00019178,2]
[347437878,1735810237758,-500.0,0.00019178,2]
[347437879,1735810237767,-501.02274101,0.00019178,2]
[347437880,1735810237778,-502.31796934,0.00019178,2]
[347437881,1735810237788,-17208.38,0.00019178,2]
[347437882,1735810237798,-500.0,0.00019178,2]
[347437883,1735810237807,-500.0,0.00019178,2]
[347437885,1735810237816,-500.0,0.00019178,2]
[347437886,1735810237826,-500.0,0.00019178,2]
[347437887,1735810237835,-501.62880177,0.00019178,2]
[347437888,1735810237844,-500.0,0.00019178,2]
[347437889,1735810237853,-503.66708583,0.00019178,2]
[347437891,1735810237863,-500.0,0.00019178,2]
[347437893,1735810237873,-500.0,0.00019178,2]
[347437894,1735810237883,-500.0,0.00019178,2]
[347437896,1735810237893,-500.0,0.00019178,2]
[347437897,1735810237902,-500.0,0.00019178,2]
[347437898,1735810237912,-500.0,0.00019178,2]
[347437900,1735810237921,-1248.82,0.00019178,2]
[347437903,1735810237930,-731.28,0.00019178,2]
[347437904,1735810237939,-500.0,0.00019178,2]
[347437905,1735810237949,-500.0,0.00019178,2]
[347437911,1735810238057,-500.0,0.00019178,2]
[347437913,1735810238067,-500.0,0.00019178,2]
[347437914,1735810238077,-500.0,0.00019178,2]
[347437915,1735810238087,-506.52050664,0.00019178,2]
[347437916,1735810238097,-500.0,0.00019178,2]
[347437917,1735810238108,-500.0,0.00019178,2]
[347437919,1735810238117,-500.0,0.00019178,2]
[347437920,1735810238128,-500.0,0.00019178,2]
[347437921,1735810238137,-501.39054236,0.00019178,2]
[347437922,1735810238146,-502.14097561,0.00019178,2]
[347437923,1735810238156,-500.0,0.00019178,2]
[347437924,1735810238165,-500.0,0.00019178,2]
[347437925,1735810238177,-500.0,0.00019178,2]
[347437926,1735810238187,-500.0,0.00019178,2]
[347437927,1735810238196,-500.0,0.00019178,2]
[347437928,1735810238206,-504.86586019,0.00019178,2]
[347437929,1735810238215,-500.0,0.00019178,2]
[347437930,1735810238224,-612.2149374,0.00019178,2]
[347437931,1735810238234,-500.0,0.00019178,2]
[347437932,1735810238244,-500.0,0.00019178,2]
[347437933,1735810238253,-500.0,0.00019178,2]
[347437934,1735810238262,-388.77233549,0.00019178,2]
[347437935,1735810238271,-500.0,0.00019178,2]
[347437936,1735810238281,-500.0,0.00019178,2]
[347437937,1735810238291,-506.62670592,0.00019178,2]
[347437938,1735810238300,-500.0,0.00019178,2]
[347437939,1735810238310,-500.0,0.00019178,2]
[347437940,1735810238320,-500.0,0.00019178,2]
[347437941,1735810238329,-578.1365734,0.00019178,2]
[347437943,1735810238338,-501.15756931,0.00019178,2]
[347437944,1735810238347,-500.0,0.00019178,2]
[347437945,1735810238356,-500.0,0.00019178,2]
[347437946,1735810238365,-502.23701622,0.00019178,2]
[347437947,1735810238374,-500.0,0.00019178,2]
[347437948,1735810238383,-502.22519618,0.00019178,2]
[347437949,1735810238392,-500.0,0.00019178,2]
[347437950,1735810238402,-500.0,0.00019178,2]
[347437951,1735810238411,-500.0,0.00019178,2]
[347437952,1735810238420,-500.0,0.00019178,2]
[347437953,1735810238430,-491.22766451,0.00019178,2]
[347437954,1735810238439,-503.91869497,0.00019178,2]
[347437955,1735810238448,-500.0,0.00019178,2]
[347437956,1735810238457,-500.90656527,0.00019178,2]
[347437957,1735810238466,-500.0,0.00019178,2]
[347437958,1735810238475,-505.35290778,0.00019178,2]
[347437959,1735810238484,-500.0,0.00019178,2]
[347437960,1735810238493,-500.0,0.00019178,2]
[347437961,1735810238502,-500.0,0.00019178,2]
[347437962,1735810238511,-500.0,0.00019178,2]
[347437963,1735810238521,-501.26181455,0.00019178,2]
[347437964,1735810238530,-514.2,0.00019178,2]
[347437965,1735810238539,-511.21369611,0.00019178,2]
[347437966,1735810238548,-514.2,0.00019178,2]
[347437967,1735810238557,-500.0,0.00019178,2]
[347437968,1735810238566,-500.0,0.00019178,2]
[347437969,1735810238575,-500.0,0.00019178,2]
[347437970,1735810238585,-514.2,0.00019178,2]
[347437971,1735810238594,-500.0,0.00019178,2]
[347437972,1735810238603,-514.2,0.00019178,2]
[347437973,1735810238612,-500.0,0.00019178,2]
[347437974,1735810238621,-597.08756962,0.00019178,2]
[347437975,1735810238631,-500.87139051,0.00019178,2]
[347437976,1735810238640,-500.86267195,0.00019178,2]
[347437977,1735810238649,-500.0,0.00019178,2]
[347437978,1735810238658,-500.0,0.00019178,2]
[347437979,1735810238667,-500.0,0.00019178,2]
[347437980,1735810238677,-502.47496454,0.00019178,2]
[347437981,1735810238687,-500.0,0.00019178,2]
[347437982,1735810238695,-500.0,0.00019178,2]
[347437983,1735810238704,-500.0,0.00019178,2]
[347437984,1735810238713,-504.96862557,0.00019178,2]
[347437985,1735810238722,-507.44257794,0.00019178,2]
[347437986,1735810238731,-504.43842735,0.00019178,2]
[347437987,1735810238740,-503.44200271,0.00019178,2]
[347437988,1735810238749,-500.0,0.00019178,2]
[347437989,1735810238758,-500.0,0.00019178,2]
[347437990,1735810238768,-500.0,0.00019178,2]
[347437991,1735810238778,-500.0,0.00019178,2]
[347437992,1735810238789,-506.00926751,0.00019178,2]
[347437993,1735810238798,-313.77342903,0.00019178,2]
[347437994,1735810238807,-500.0,0.00019178,2]
[347437995,1735810238817,-503.01222748,0.00019178,2]
[347437996,1735810238826,-500.0,0.00019178,2]
[347437997,1735810238835,-501.80460143,0.00019178,2]
[347437998,1735810238844,-500.0,0.00019178,2]
[347437999,1735810238853,-500.0,0.00019178,2]
[347438000,1735810238864,-500.63756439,0.00019178,2]
[347438001,1735810238873,-500.0,0.00019178,2]
[347438002,1735810238882,-538.19,0.00019178,2]
[347438003,1735810238891,-500.0,0.00019178,2]
[347438004,1735810238900,-500.0,0.00019178,2]
[347438005,1735810238909,-500.0,0.00019178,2]
[347438006,1735810238918,-500.0,0.00019178,2]
[347438007,1735810238929,-500.0,0.00019178,2]
[347438008,1735810238938,-415.23321191,0.00019178,2]
[347438009,1735810238947,-503.10916992,0.00019178,2]
[347438010,1735810238956,-500.0,0.00019178,2]
[347438011,1735810238966,-500.0,0.00019178,2]
[347438012,1735810238975,-500.0,0.00019178,2]
[347438013,1735810238984,-500.0,0.00019178,2]
[347438014,1735810238993,-502.89526421,0.00019178,2]
[347438015,1735810239003,-507.96063659,0.00019178,2]
[347438016,1735810239012,-500.0,0.00019178,2]
[347438017,1735810239020,-503.68489701,0.00019178,2]
[347438018,1735810239030,-502.46245158,0.00019178,2]
[347438019,1735810239039,-629.52514334,0.00019178,2]
[347438020,1735810239048,-588.38,0.00019178,2]
[347438021,1735810239057,-502.45340826,0.00019178,2]
[347438022,1735810239067,-501.99912002,0.00019178,2]
[347438023,1735810239076,-500.0,0.00019178,2]
[347438024,1735810239085,-500.0,0.00019178,2]
[347438025,1735810239094,-502.1846257,0.00019178,2]
[347438026,1735810239103,-500.0,0.00019178,2]
[347438027,1735810239112,-500.0,0.00019178,2]
[347438028,1735810239121,-500.0,0.00019178,2]
[347438029,1735810239130,-500.0,0.00019178,2]
[347438030,1735810239139,-500.0,0.00019178,2]
[347438031,1735810239149,-500.0,0.00019178,2]
[347438032,1735810239158,-500.0,0.00019178,2]
[347438033,1735810239168,-501.32514093,0.00019178,2]
[347438034,1735810239179,-502.09805083,0.00019178,2]
[347438035,1735810239188,-500.0,0.00019178,2]
[347438036,1735810239197,-501.75883278,0.00019178,2]
[347438037,1735810239206,-500.0,0.00019178,2]
[347438038,1735810239215,-500.0,0.00019178,2]
[347438039,1735810239225,-640.12449582,0.00019178,2]
[347438040,1735810239234,-553.62386844,0.00019178,2]
[347438041,1735810239243,-501.74628215,0.00019178,2]
[347438042,1735810239252,-500.0,0.00019178,2]
[347438043,1735810239261,-502.03681577,0.00019178,2]
[347438044,1735810239270,-500.0,0.00019178,2]
[347438045,1735810239279,-500.0,0.00019178,2]
[347438046,1735810239288,-8176.07,0.00019178,2]
[347438047,1735810239297,-500.0,0.00019178,2]
[347438048,1735810239306,-501.77291779,0.00019178,2]
[347438049,1735810239315,-500.0,0.00019178,2]
[347438050,1735810239324,-500.0,0.00019178,2]
[347438051,1735810239333,-256.54536306,0.00019178,2]
[347438052,1735810239342,-500.0,0.00019178,2]
[347438053,1735810239351,-500.0,0.00019178,2]
[347438054,1735810239360,-521.53,0.00019178,2]
[347438055,1735810239368,-500.0,0.00019178,2]
[347438056,1735810239377,-500.0,0.00019178,2]
[347438057,1735810239386,-500.0,0.00019178,2]
[347438058,1735810239395,-500.0,0.00019178,2]
[347438059,1735810239404,-504.03461667,0.00019178,2]
[347438060,1735810239413,-503.60343341,0.00019178,2]
[347438061,1735810239422,-500.0,0.00019178,2]
[347438062,1735810239432,-500.0,0.00019178,2]
[347438063,1735810239441,-501.90888916,0.00019178,2]
[347438064,1735810239450,-500.0,0.00019178,2]
[347438065,1735810239459,-500.0,0.00019178,2]
[347438066,1735810239470,-392.92556305,0.00019178,2]
[347438067,1735810239479,-500.0,0.00019178,2]
[347438068,1735810239488,-500.0,0.00019178,2]
[347438069,1735810239497,-154.46,0.00019178,2]
[347438070,1735810239506,-166.555737,0.00019178,2]
[347438071,1735810239515,-500.0,0.00019449,3]
[347438072,1735810239524,-500.0,0.00019449,3]
[347438073,1735810239533,-500.0,0.00019451,3]
[347438074,1735810239542,-500.0,0.00019451,3]
[347438075,1735810239551,-500.0,0.00019451,3]
[347438076,1735810239560,-500.0,0.00019451,3]
[347438077,1735810239569,-500.0,0.00019451,3]
[347438078,1735810239578,-514.2,0.00019451,3]
[347438079,1735810239587,-514.2,0.00019451,3]
[347438080,1735810239596,-501.47132768,0.00019452,3]
[347438081,1735810239605,-500.0,0.00019452,2]
[347438082,1735810239614,-504.95018976,0.00019452,3]
[347438083,1735810239623,-279.16660487,0.00019452,3]
[347438084,1735810239633,-503.78186082,0.00019452,3]
[347438085,1735810239642,-500.0,0.00019452,3]
[347438086,1735810239651,-500.0,0.00019452,3]
[347438087,1735810239661,-636.16511121,0.00019452,3]
[347438088,1735810239671,-500.0,0.00019452,3]
[347438089,1735810239682,-500.0,0.00019452,3]
[347438090,1735810239692,-500.0,0.00019452,3]
[347438091,1735810239702,-500.0,0.00019452,3]
[347438092,1735810239712,-212.80029148,0.00019452,3]
[347438093,1735810239721,-500.0,0.00019452,3]
[347438094,1735810239730,-514.34,0.00019452,3]
[347438095,1735810239740,-500.0,0.00019452,3]
[347438096,1735810239749,-562.62,0.00019452,3]
[347438097,1735810239758,-500.0,0.00019452,3]
[347438098,1735810239767,-500.0,0.00019452,3]
[347438099,1735810239777,-343.53871796,0.00019452,3]
[347438100,1735810239789,-530.40897516,0.00019452,3]
[347438101,1735810239798,-500.0,0.00019452,2]
[347438102,1735810239807,-500.0,0.00019452,3]
[347438103,1735810239816,-500.0,0.00019452,3]
[347438104,1735810239826,-500.0,0.00019452,3]
[347438105,1735810239834,-500.0,0.00019452,3]
[347438106,1735810239843,-805.74,0.00019452,3]
[347438107,1735810239853,-303.74613914,0.00019452,3]
[347438109,1735810239862,-335.05521016,0.00019452,3]
[347438111,1735810239872,-185.86,0.00019452,3]
[347438113,1735810239881,-500.0,0.00019452,3]
[347438115,1735810239890,-1592.1,0.00019452,3]
[347438117,1735810239899,-500.0,0.00019452,3]
[347438118,1735810239908,-500.0,0.00019452,3]
[347438119,1735810239917,-500.0,0.00019452,3]
[347438120,1735810239927,-500.0,0.00019452,3]
[347438122,1735810239936,-17208.38,0.00019452,3]
[347438124,1735810239945,-500.0,0.00019452,3]
[347438126,1735810239954,-500.0,0.00019452,3]
[347438128,1735810239964,-500.0,0.00019452,3]
[347438130,1735810239973,-500.0,0.00019452,3]
[347438132,1735810239982,-1248.82,0.00019452,3]
[347438134,1735810239991,-731.28,0.00019452,3]
[347438136,1735810240000,-500.0,0.00019452,3]
[347438138,1735810240009,-500.0,0.00019452,2]
[347438139,1735810240018,-500.0,0.00019452,3]
[347438140,1735810240027,-500.0,0.00019452,3]
[347438142,1735810240037,-500.0,0.00019452,3]
[347438143,1735810240046,-500.0,0.00019452,3]
[347438145,1735810240055,-500.0,0.00019452,3]
[347438147,1735810240065,-500.0,0.00019452,3]
[347438148,1735810240076,-500.0,0.00019452,3]
[347438149,1735810240085,-500.0,0.00019452,3]
[347438150,1735810240095,-500.0,0.00019452,3]
[347438151,1735810240104,-500.0,0.00019452,3]
[347438152,1735810240113,-596.32431933,0.00019452,3]
[347438153,1735810240123,-521.73131226,0.00019452,3]
[347438154,1735810240132,-500.0,0.00019452,3]
[347438155,1735810240142,-500.0,0.00019452,3]
[347438156,1735810240151,-538.19,0.00019452,3]
[347438158,1735810240161,-312.7775773,0.00019452,3]
[347438159,1735810240170,-500.0,0.00019452,3]
[347438160,1735810240180,-588.38,0.00019452,3]
[347438161,1735810240189,-500.0,0.00019452,3]
[347438162,1735810240199,-500.0,0.00019452,3]
[347438163,1735810240207,-500.0,0.00019452,3]
[347438165,1735810240216,-500.0,0.00019452,3]
[347438166,1735810240226,-8176.07,0.00019452,3]
[347438168,1735810240235,-500.0,0.00019452,3]
[347438170,1735810240244,-500.0,0.00019452,3]
[347438172,1735810240253,-521.53,0.00019452,3]
[347438173,1735810240263,-500.0,0.00019452,3]
[347438174,1735810240273,-500.0,0.00019452,3]
[347438175,1735810240284,-500.0,0.00019452,3]
[347438177,1735810240294,-500.0,0.0001956,3]
[347438178,1735810240303,-500.0,0.0001956,3]
[347438179,1735810240313,-351.62,0.000196,2]
[347438180,1735810240322,-264.20126332,0.00019656,2]
[347438181,1735810240332,-514.2,0.00019723,3]
[347438182,1735810240341,-500.0,0.00019724,3]
[347438183,1735810240350,-500.0,0.00019724,3]
[347438184,1735810240359,-500.0,0.00019724,3]
[347438185,1735810240368,-500.0,0.00019724,3]
[347438186,1735810240378,-500.0,0.00019724,3]
[347438187,1735810240387,-500.0,0.00019724,3]
[347438188,1735810240397,-500.0,0.00019724,3]
[347438189,1735810240407,-1773.27,0.00019724,3]
[347438190,1735810240416,-464.26911738,0.00019725,3]
[347438191,1735810240427,-500.0,0.00019725,3]
[347438192,1735810240436,-500.0,0.00019725,3]
[347438193,1735810240446,-500.0,0.00019725,3]
[347438194,1735810240455,-500.0,0.00019725,3]
[347438195,1735810240465,-500.0,0.00019725,3]
[347438196,1735810240474,-514.2,0.00019725,3]
[347438197,1735810240484,-514.2,0.00019725,3]
[347438198,1735810240493,-500.0,0.00019726,2]
[347438199,1735810240503,-500.0,0.00019726,3]
[347438200,1735810240512,-543.78740292,0.00019726,3]
[347438201,1735810240522,-500.0,0.00019726,3]
[347438202,1735810240531,-500.0,0.00019726,3]
[347438203,1735810240541,-500.0,0.00019726,3]
[347438204,1735810240550,-500.0,0.00019726,3]
[347438205,1735810240559,-500.0,0.00019726,3]
[347438206,1735810240569,-588.36,0.00019726,3]
[347438207,1735810240579,-500.0,0.00019726,3]
[347438208,1735810240588,-618.00397185,0.00019726,3]
[347438209,1735810240598,-805.74,0.00019726,3]
[347438210,1735810240607,-500.0,0.00019726,3]
[347438211,1735810240616,-1592.1,0.00019726,3]
[347438212,1735810240626,-500.0,0.00019726,3]
[347438213,1735810240636,-500.0,0.00019726,3]
[347438214,1735810240646,-500.0,0.00019726,3]
[347438215,1735810240656,-17208.38,0.00019726,3]
[347438216,1735810240669,-500.0,0.00019726,3]
[347438217,1735810240681,-500.0,0.00019726,3]
[347438218,1735810240690,-500.0,0.00019726,3]
[347438219,1735810240699,-1248.82,0.00019726,3]
[347438220,1735810240708,-731.28,0.00019726,3]
[347438221,1735810240717,-500.0,0.00019726,3]
[347438222,1735810240726,-500.0,0.00019726,2]
[347438223,1735810240736,-579.59,0.00019726,3]
[347438224,1735810240745,-500.0,0.00019726,3]
[347438225,1735810240754,-500.0,0.00019726,3]
[347438226,1735810240853,-500.0,0.00019726,3]
[347438227,1735810240873,-500.0,0.00019726,3]
[347438228,1735810240883,-160.49,0.00019726,3]
[347438229,1735810240892,-500.0,0.00019726,3]
[347438230,1735810240901,-500.0,0.00019726,3]
[347438231,1735810240910,-538.19,0.00019726,3]
[347438232,1735810240919,-500.0,0.00019726,3]
[347438233,1735810240930,-588.38,0.00019726,3]
[347438234,1735810240939,-500.0,0.00019726,3]
[347438235,1735810240948,-500.0,0.00019726,3]
[347438236,1735810240957,-500.0,0.00019726,3]
[347438237,1735810240966,-8176.07,0.00019726,3]
[347438238,1735810240975,-500.0,0.00019726,3]
[347438239,1735810240984,-521.53,0.00019726,3]
[347438240,1735810240993,-500.0,0.00019726,3]
[347438241,1735810241002,-500.0,0.00019726,3]
[347438242,1735810241012,-500.0,0.00019726,3]
[347438243,1735810241021,-3000.0,0.000199,2]
[347438244,1735810241030,-500.0,0.00019998,3]
[347438245,1735810241039,-507.81344998,0.00019998,3]
[347438246,1735810241048,-1773.27,0.00019998,3]
[347438247,1735810241058,-500.0,0.00019999,3]
[347438248,1735810241067,-500.0,0.00019999,3]
[347438249,1735810241076,-514.2,0.00019999,3]
[347438250,1735810241085,-514.2,0.00019999,3]
[347438251,1735810241094,-180.40961761,0.00019999,2]
[347438252,1735810241103,-212.11301882,0.00019999,2]
[347438253,1735810241112,-500.0,0.00019999,2]
[347438254,1735810241121,-356.87320115,0.00019999,2]
[347438255,1735810241131,-500.0,0.0002,3]
[347438256,1735810241139,-500.0,0.0002,3]
[347438257,1735810241148,-500.0,0.0002,3]
[347438258,1735810241158,-500.0,0.0002,3]
[347438259,1735810241167,-600.35458848,0.0002,3]
[347438260,1735810241176,-500.0,0.0002,3]
[347438261,1735810241185,-500.0,0.0002,3]
[347438262,1735810241194,-805.74,0.0002,3]
[347438263,1735810241203,-500.0,0.0002,3]
[347438264,1735810241212,-1592.1,0.0002,3]
[347438265,1735810241221,-500.0,0.0002,3]
[347438266,1735810241231,-524.00126605,0.0002,3]
[347438267,1735810241239,-500.0,0.0002,3]
[347438268,1735810241249,-17208.38,0.0002,3]
[347438269,1735810241258,-500.0,0.0002,3]
[347438270,1735810241267,-500.0,0.0002,3]
[347438271,1735810241276,-459.9575872,0.0002,3]
[347438272,1735810241285,-1248.82,0.0002,3]
[347438273,1735810241294,-731.28,0.0002,3]
[347438274,1735810241303,-500.0,0.0002,3]
[347438275,1735810241312,-500.0,0.0002,2]
[347438276,1735810241321,-500.0,0.0002,3]
[347438277,1735810241330,-500.0,0.0002,3]
[347438278,1735810241339,-500.0,0.0002,3]
[347438279,1735810241348,-500.0,0.0002,3]
[347438280,1735810241357,-500.0,0.0002,3]